fUST/lending_fUST_20250926
["ID","MTS","AMOUNT","RATE_DAILY","PERIOD"]
[387707731,1758818843323,-480.0,0.0001935,2]
[387707732,1758818843344,-480.0,0.0001935,2]
[387707733,1758818843364,-480.0,0.0001935,2]
[387707734,1758818843383,-480.0,0.0001935,2]
[387707735,1758818843405,-480.0,0.0001935,2]
[387707736,1758818843513,-480.0,0.0001935,2]
[387707737,1758818843536,-480.0,0.0001935,2]
[387707738,1758818843560,-480.0,0.0001935,2]
[387707739,1758818843582,-480.0,0.0001935,2]
[387707740,1758818843603,-480.0,0.0001935,2]
[387707741,1758818843625,-480.0,0.0001935,2]
[387707742,1758818843649,-480.0,0.0001935,2]
[387707743,1758818843671,-480.0,0.0001935,2]
[387707744,1758818843693,-345.57,0.0001935,2]
[387707745,1758818843716,-480.0,0.0001935,2]
[387707746,1758818843739,-480.0,0.0001935,2]
[387707747,1758818843760,-480.0,0.0001935,2]
[387707748,1758818843781,-436.23905877,0.0001935,2]
[387707749,1758818843802,-480.0,0.0001935,2]
[387707750,1758818843825,-164.62,0.0001935,2]
[387707751,1758818843846,-480.0,0.0001935,2]
[387707752,1758818843867,-527.66,0.0001935,2]
[387707753,1758818843887,-480.0,0.0001935,2]
[387707754,1758818843908,-480.0,0.0001935,2]
[387707755,1758818843931,-480.0,0.0001935,2]
[387707756,1758818843952,-480.0,0.0001935,2]
[387707757,1758818843972,-480.0,0.0001935,2]
[387707758,1758818843992,-480.0,0.0001935,2]
[387707759,1758818844014,-418.04762135,0.0001935,2]
[387707760,1758818844037,-480.0,0.0001935,2]
[387707761,1758818844060,-480.0,0.0001935,2]
[387707762,1758818844082,-480.0,0.0001935,2]
[387707763,1758818844101,-480.0,0.0001935,2]
[387707764,1758818844123,-480.0,0.0001935,2]
[387707765,1758818844145,-480.0,0.0001935,2]
[387707766,1758818844167,-480.0,0.0001935,2]
[387707767,1758818844188,-480.0,0.0001935,2]
[387707768,1758818844209,-321.4430261,0.0001935,2]
[387707769,1758818844231,-480.0,0.0001935,2]
[387707770,1758818844252,-141.30665872,0.0001935,2]
[387707772,1758818854092,-480.0,0.00019349,2]
[387707773,1758818854121,-480.0,0.00019349,2]
[387707774,1758818854143,-338.69334128,0.0001935,2]
[387707775,1758818854165,-480.0,0.0001935,2]
[387707776,1758818854188,-480.0,0.0001935,2]
[387707777,1758818854211,-500.0,0.0001935,2]
[387707778,1758818854233,-296.75802504,0.0001935,2]
[387707779,1758818854256,-500.0,0.0001935,2]
[387707780,1758818854278,-500.0,0.0001935,2]
[387707781,1758818854300,-500.0,0.0001935,2]
[387707782,1758818854325,-500.0,0.0001935,2]
[387707783,1758818854349,-500.0,0.0001935,2]
[387707784,1758818854371,-500.0,0.0001935,2]
[387707785,1758818854393,-500.0,0.0001935,2]
[387707786,1758818854415,-500.0,0.0001935,2]
[387707787,1758818854440,-500.0,0.0001935,2]
[387707788,1758818854462,-500.0,0.0001935,2]
[387707789,1758818854487,-500.0,0.0001935,2]
[387707790,1758818854509,-500.0,0.0001935,2]
[387707791,1758818854530,-500.0,0.0001935,2]
[387707792,1758818854552,-521.36936737,0.0001935,2]
[387707793,1758818854577,-480.0,0.00019351,2]
[387707794,1758818854597,-480.0,0.00019351,2]
[387707795,1758818854618,-480.0,0.00019351,2]
[387707796,1758818854637,-279.14950553,0.00019351,2]
[387707797,1758818854658,-480.0,0.00019351,2]
[387707798,1758818854681,-480.0,0.00019351,2]
[387707799,1758818854703,-480.0,0.00019351,2]
[387707800,1758818854723,-480.0,0.00019351,2]
[387707801,1758818854745,-480.0,0.00019351,2]
[387707802,1758818854766,-192.82163182,0.00019351,2]
[387707803,1758818854786,-480.0,0.00019351,2]
[387707804,1758818854807,-480.0,0.00019351,2]
[387707805,1758818854829,-480.0,0.00019351,2]
[387707806,1758818854849,-480.0,0.00019351,2]
[387707807,1758818854871,-480.0,0.00019351,2]
[387707808,1758818854891,-480.0,0.00019351,2]
[387707809,1758818854913,-480.0,0.00019351,2]
[387707810,1758818854938,-480.0,0.00019351,2]
[387707811,1758818854960,-480.0,0.00019351,2]
[387707812,1758818854980,-480.0,0.00019351,2]
[387707813,1758818855002,-480.0,0.00019351,2]
[387707814,1758818855022,-480.0,0.00019351,2]
[387707815,1758818855047,-480.0,0.00019351,2]
[387707816,1758818855068,-480.0,0.00019351,2]
[387707817,1758818855089,-480.0,0.00019351,2]
[387707818,1758818855112,-480.0,0.00019351,2]
[387707819,1758818855133,-500.0,0.00019351,2]
[387707820,1758818855155,-480.0,0.00019351,2]
[387707821,1758818855176,-480.0,0.00019351,2]
[387707822,1758818855196,-480.0,0.00019351,2]
[387707823,1758818855217,-480.0,0.00019351,2]
[387707824,1758818855237,-480.0,0.00019351,2]
[387707825,1758818855259,-480.0,0.00019351,2]
[387707826,1758818855280,-500.0,0.00019351,2]
[387707827,1758818855299,-500.0,0.00019351,2]
[387707828,1758818855323,-480.0,0.00019351,2]
[387707829,1758818855343,-480.0,0.00019351,2]
[387707830,1758818855364,-480.0,0.00019351,2]
[387707831,1758818855472,-480.0,0.00019351,2]
[387707832,1758818855498,-485.24898232,0.00019351,2]
[387707833,1758818855518,-480.0,0.00019351,2]
[387707834,1758818855541,-480.0,0.00019351,2]
[387707835,1758818855563,-480.0,0.00019351,2]
[387707836,1758818855586,-207.92146297,0.00019351,2]
[387707837,1758818855607,-480.0,0.00019351,2]
[387707838,1758818855628,-480.0,0.00019351,2]
[387707839,1758818855649,-480.0,0.00019351,2]
[387707840,1758818855670,-480.0,0.00019351,2]
[387707841,1758818855690,-480.0,0.00019351,2]
[387707842,1758818855711,-500.0,0.00019351,2]
[387707843,1758818855731,-500.0,0.00019351,2]
[387707844,1758818855751,-500.0,0.00019351,2]
[387707845,1758818855773,-500.0,0.00019351,2]
[387707846,1758818855793,-500.0,0.00019351,2]
[387707847,1758818855814,-500.0,0.00019351,2]
[387707848,1758818855837,-500.0,0.00019351,2]
[387707849,1758818855857,-500.0,0.00019351,2]
[387707850,1758818855877,-500.0,0.00019351,2]
[387707851,1758818855898,-500.0,0.00019351,2]
[387707852,1758818855920,-305.23,0.00019351,2]
[387707853,1758818855941,-480.0,0.00019351,2]
[387707854,1758818855961,-626.24568502,0.00019351,2]
[387707855,1758818855983,-524.16,0.00019351,2]
[387707856,1758818856002,-505.96665422,0.00019351,2]
[387707857,1758818856021,-480.0,0.00019351,2]
[387707858,1758818856041,-488.57735303,0.00019351,2]
[387707859,1758818856060,-480.0,0.00019351,2]
[387707860,1758818856082,-521.76730016,0.00019351,2]
[387707861,1758818856102,-491.67401849,0.00019351,2]
[387707862,1758818856123,-480.0,0.00019351,2]
[387707863,1758818856144,-480.0,0.00019351,2]
[387707864,1758818856166,-480.0,0.00019351,2]
[387707865,1758818856186,-480.0,0.00019351,2]
[387707866,1758818856207,-480.0,0.00019351,2]
[387707867,1758818856227,-187.69,0.00019351,2]
[387707868,1758818856247,-1000.0,0.00019351,2]
[387707869,1758818856267,-1000.0,0.00019351,2]
[387707870,1758818856286,-1000.0,0.00019351,2]
[387707871,1758818856306,-1000.0,0.00019351,2]
[387707872,1758818856327,-1000.0,0.00019351,2]
[387707873,1758818856347,-1000.0,0.00019351,2]
[387707874,1758818856366,-1000.0,0.00019351,2]
[387707875,1758818856386,-471.59,0.00019351,2]
[387707876,1758818856405,-42196.09653875,0.00019352,2]
[387707911,1758819032256,-164.42,0.00019313,2]
[387707913,1758819032266,-1617.0,0.00019313,5]
[387707915,1758819032276,-480.0,0.00019349,2]
[387707917,1758819032286,-466.17494564,0.00019349,2]
[387707919,1758819032295,-483.22635894,0.00019349,2]
[387707921,1758819032305,-480.0,0.00019349,2]
[387707923,1758819032314,-480.0,0.00019349,2]
[387707925,1758819032324,-480.0,0.00019349,2]
[387707927,1758819032333,-480.0,0.00019349,2]
[387707929,1758819032343,-480.0,0.0001935,2]
[387707931,1758819032353,-480.0,0.0001935,2]
[387707934,1758819032362,-480.0,0.0001935,2]
[387707937,1758819032372,-480.0,0.0001935,2]
[387707940,1758819032381,-500.77423389,0.0001935,2]
[387707943,1758819032391,-377.47400994,0.0001935,2]
[387707946,1758819032401,-480.0,0.0001935,2]
[387707948,1758819032410,-480.0,0.0001935,2]
[387707950,1758819032419,-480.0,0.0001935,2]
[387707953,1758819032636,-481.89372087,0.0001935,2]
[387707954,1758819032646,-480.0,0.00019351,2]
[387707955,1758819032655,-500.0,0.00019351,2]
[387707956,1758819032665,-500.0,0.00019351,2]
[387707957,1758819032675,-207.73061753,0.00019351,2]
[387707958,1758819032684,-500.0,0.00019351,2]
[387707959,1758819032694,-500.0,0.00019351,2]
[387707960,1758819032704,-500.0,0.00019351,2]
[387707961,1758819032716,-500.0,0.00019351,2]
[387707962,1758819032726,-500.0,0.00019351,2]
[387707963,1758819032736,-500.0,0.00019351,2]
[387707964,1758819032745,-500.0,0.00019351,2]
[387707965,1758819032754,-500.0,0.00019351,2]
[387707966,1758819032764,-264.95855716,0.00019351,2]
[387707967,1758819032774,-368.90585349,0.00019351,2]
[387707968,1758819032784,-7612.8759031,0.00019352,2]
[387707969,1758819032794,-25694.67845144,0.00019352,2]
[387707970,1758819033769,-10562.328874,0.00019352,2]
[387707971,1758819033781,-286.81356417,0.00019352,2]
[387707986,1758819038219,-480.0,0.0001935,2]
[387707988,1758819038229,-1422.47090782,0.00019352,2]
[387707990,1758819038240,-1406.27096853,0.00019352,2]
[387707992,1758819038251,-2621.01897433,0.00019352,2]
[387707994,1758819038262,-1181.97990281,0.00019352,2]
[387707996,1758819038274,-1855.94115,0.00019352,2]
[387707999,1758819038285,-33406.1089056,0.00019352,2]
[387708001,1758819038296,-9705.21298905,0.00019352,2]
[387708003,1758819038307,-878.73,0.00019352,2]
[387708045,1758819038872,-3323.9217651,0.00019352,2]
[387708046,1758819038912,-455.27,0.00019352,2]
[387708047,1758819038924,-669.59638396,0.00019352,2]
[387708048,1758819038936,-2800.19256724,0.00019352,2]
[387708196,1758819043318,-290.94439098,0.00019349,2]
[387708197,1758819043331,-480.0,0.00019349,2]
[387708198,1758819043341,-480.0,0.0001935,2]
[387708199,1758819043351,-480.0,0.00019351,2]
[387708200,1758819043361,-19289.52433114,0.00019352,2]
[387708201,1758819043373,-268.50002,0.00019352,2]
[387708207,1758819046379,-620.1916192,0.00019352,2]
[387708236,1758819046825,-2472.320467,0.00019352,2]
[387708238,1758819046837,-19752.50000007,0.00019352,2]
[387708240,1758819046848,-4054.39325301,0.00019352,2]
[387708272,1758820048117,-1200.0,0.00019346,2]
[387708273,1758820048141,-300.0,0.00019346,2]
[387708274,1758820048167,-409.89539277,0.00019346,2]
[387708275,1758820048195,-500.0,0.00019347,2]
[387708276,1758820048221,-500.0,0.00019347,2]
[387708277,1758820048245,-210.74052905,0.00019347,2]
[387708278,1758820048270,-500.0,0.00019347,2]
[387708279,1758820048295,-500.0,0.00019347,2]
[387708280,1758820048320,-500.0,0.00019347,2]
[387708281,1758820048344,-569.87636235,0.00019347,2]
[387708282,1758820048369,-500.0,0.00019347,2]
[387708283,1758820048394,-500.0,0.00019347,2]
[387708284,1758820048419,-500.0,0.00019347,2]
[387708285,1758820048444,-480.0,0.00019347,2]
[387708286,1758820048469,-480.0,0.00019347,2]
[387708287,1758820048493,-480.0,0.00019347,2]
[387708288,1758820048518,-480.0,0.00019347,2]
[387708289,1758820048543,-170.05,0.00019347,2]
[387708290,1758820048570,-480.0,0.00019347,2]
[387708291,1758820048595,-480.0,0.00019347,2]
[387708292,1758820048623,-480.0,0.00019347,2]
[387708293,1758820048649,-490.23,0.00019347,2]
[387708294,1758820048673,-480.0,0.00019347,2]
[387708295,1758820048697,-480.0,0.00019347,2]
[387708296,1758820048722,-480.0,0.00019347,2]
[387708297,1758820048743,-480.0,0.00019347,2]
[387708298,1758820048764,-480.0,0.00019347,2]
[387708299,1758820048784,-480.0,0.00019347,2]
[387708300,1758820048804,-317.0225226,0.00019347,2]
[387708333,1758820232461,-285.52010171,0.00019322,2]
[387708336,1758820232471,-157.17149234,0.00019346,2]
[387708339,1758820232480,-480.0,0.00019346,2]
[387708342,1758820232489,-482.34784075,0.00019346,2]
[387708345,1758820232498,-462.10245832,0.00019346,2]
[387708348,1758820232507,-200.83266958,0.00019346,2]
[387708351,1758820232516,-480.0,0.00019346,2]
[387708356,1758820232526,-598.88,0.00019346,2]
[387708358,1758820232540,-162.9774774,0.00019347,2]
[387708360,1758820232550,-480.0,0.00019347,2]
[387708361,1758820232558,-480.0,0.00019347,2]
[387708362,1758820232567,-480.0,0.00019347,2]
[387708363,1758820232576,-480.0,0.00019347,2]
[387708364,1758820232585,-480.0,0.00019347,2]
[387708365,1758820232594,-480.0,0.00019347,2]
[387708367,1758820232603,-502.87,0.00019347,2]
[387708368,1758820232612,-480.0,0.00019347,2]
[387708369,1758820232622,-480.0,0.00019347,2]
[387708370,1758820232631,-539.1,0.00019347,2]
[387708371,1758820232640,-480.0,0.00019347,2]
[387708372,1758820232649,-480.0,0.00019347,2]
[387708373,1758820232658,-480.0,0.00019347,2]
[387708374,1758820232667,-480.0,0.00019347,2]
[387708375,1758820232676,-480.0,0.00019347,2]
[387708376,1758820232685,-480.0,0.00019347,2]
[387708377,1758820232694,-4910.44450163,0.00019348,2]
[387708378,1758820232705,-2035.00000762,0.00019348,2]
[387708379,1758820232720,-37830.18955633,0.00019348,2]
[387708380,1758820232730,-480.0,0.00019348,2]
[387708381,1758820232740,-480.0,0.00019348,2]
[387708382,1758820232749,-480.0,0.00019348,2]
[387708383,1758820232759,-480.0,0.00019348,2]
[387708384,1758820232768,-482.63016143,0.00019348,2]
[387708385,1758820232777,-480.0,0.00019348,2]
[387708387,1758820232787,-500.41549574,0.00019348,2]
[387708389,1758820232796,-480.0,0.00019348,2]
[387708391,1758820232805,-593.20149059,0.00019348,2]
[387708393,1758820232814,-480.0,0.00019348,2]
[387708395,1758820232823,-480.0,0.00019348,2]
[387708397,1758820232831,-480.0,0.00019348,2]
[387708399,1758820232840,-480.0,0.00019348,2]
[387708401,1758820232849,-480.0,0.00019348,2]
[387708403,1758820232858,-480.0,0.00019348,2]
[387708405,1758820232867,-480.0,0.00019348,2]
[387708407,1758820232877,-480.0,0.00019348,2]
[387708409,1758820232886,-480.0,0.00019348,2]
[387708411,1758820232895,-480.0,0.00019348,2]
[387708413,1758820232904,-480.0,0.00019348,2]
[387708415,1758820232913,-480.0,0.00019348,2]
[387708417,1758820232922,-500.0,0.00019348,2]
[387708419,1758820232931,-480.0,0.00019348,2]
[387708421,1758820232940,-480.0,0.00019348,2]
[387708423,1758820232950,-480.0,0.00019348,2]
[387708425,1758820232959,-193.19888542,0.00019348,2]
[387708427,1758820232968,-480.0,0.00019348,2]
[387708429,1758820232976,-480.0,0.00019348,2]
[387708431,1758820232989,-480.0,0.00019348,2]
[387708433,1758820232998,-480.0,0.00019348,2]
[387708435,1758820233007,-480.0,0.00019348,2]
[387708437,1758820233017,-480.0,0.00019348,2]
[387708439,1758820233026,-480.0,0.00019348,2]
[387708441,1758820233036,-480.0,0.00019348,2]
[387708443,1758820233046,-480.0,0.00019348,2]
[387708444,1758820233055,-166.463017,0.00019348,2]
[387708445,1758820233066,-480.0,0.00019348,2]
[387708446,1758820233079,-480.0,0.00019348,2]
[387708447,1758820233088,-480.0,0.00019348,2]
[387708448,1758820233098,-480.0,0.00019348,2]
[387708449,1758820233107,-480.0,0.00019348,2]
[387708450,1758820233117,-480.0,0.00019348,2]
[387708451,1758820233127,-480.0,0.00019348,2]
[387708452,1758820233136,-480.0,0.00019348,2]
[387708453,1758820233146,-480.0,0.00019348,2]
[387708454,1758820233157,-503.6,0.00019348,2]
[387708455,1758820233167,-480.0,0.00019348,2]
[387708456,1758820233177,-480.0,0.00019348,2]
[387708457,1758820233187,-480.0,0.00019348,2]
[387708458,1758820233197,-480.0,0.00019348,2]
[387708459,1758820233206,-480.0,0.00019348,2]
[387708460,1758820233216,-480.0,0.00019348,2]
[387708461,1758820233225,-480.0,0.00019348,2]
[387708462,1758820233236,-480.0,0.00019348,2]
[387708463,1758820233246,-480.0,0.00019348,2]
[387708464,1758820233255,-480.0,0.00019348,2]
[387708465,1758820233264,-480.0,0.00019348,2]
[387708466,1758820233274,-480.0,0.00019348,2]
[387708467,1758820233283,-227.48569811,0.00019348,2]
[387708468,1758820233292,-480.0,0.00019348,2]
[387708469,1758820233301,-480.0,0.00019348,2]
[387708470,1758820233310,-480.0,0.00019348,2]
[387708471,1758820233320,-480.0,0.00019348,2]
[387708472,1758820233329,-480.0,0.00019348,2]
[387708473,1758820233339,-480.0,0.00019348,2]
[387708474,1758820233349,-480.0,0.00019348,2]
[387708475,1758820233359,-480.0,0.00019348,2]
[387708476,1758820233368,-480.0,0.00019348,2]
[387708477,1758820233378,-480.0,0.00019348,2]
[387708478,1758820233387,-480.0,0.00019348,2]
[387708479,1758820233397,-480.0,0.00019348,2]
[387708480,1758820233406,-480.0,0.00019348,2]
[387708481,1758820233415,-480.0,0.00019348,2]
[387708482,1758820233424,-490.94197555,0.00019348,2]
[387708483,1758820233434,-481.95646586,0.00019348,2]
[387708484,1758820233443,-480.0,0.00019348,2]
[387708485,1758820233452,-480.0,0.00019348,2]
[387708486,1758820233462,-480.0,0.00019348,2]
[387708487,1758820233471,-480.0,0.00019348,2]
[387708488,1758820233482,-480.0,0.00019348,2]
[387708489,1758820233491,-480.94301996,0.00019348,2]
[387708490,1758820233501,-480.0,0.00019349,2]
[387708491,1758820233510,-480.0,0.00019349,2]
[387708492,1758820233520,-480.0,0.00019349,2]
[387708493,1758820233530,-480.0,0.00019349,2]
[387708494,1758820233540,-245.61693289,0.00019349,2]
[387708495,1758820233549,-480.0,0.00019349,2]
[387708496,1758820233559,-480.0,0.00019349,2]
[387708497,1758820233569,-480.0,0.00019349,2]
[387708498,1758820233579,-480.0,0.00019349,2]
[387708499,1758820233589,-480.0,0.00019349,2]
[387708500,1758820233599,-480.0,0.00019349,2]
[387708501,1758820233609,-410.79806037,0.00019349,2]
[387708502,1758820233619,-490.69534986,0.00019349,2]
[387708503,1758820233629,-480.0,0.00019349,2]
[387708504,1758820233639,-480.0,0.00019349,2]
[387708505,1758820233649,-480.0,0.00019349,2]
[387708506,1758820233658,-480.0,0.0001935,2]
[387708507,1758820233668,-301.38298351,0.0001935,2]
[387708508,1758820233677,-618.36,0.0001935,2]
[387708509,1758820233687,-480.0,0.0001935,2]
[387708510,1758820233696,-500.0,0.00019351,2]
[387708511,1758820233706,-480.0,0.00019351,2]
[387708512,1758820233716,-480.0,0.00019351,2]
[387708513,1758820233726,-480.0,0.00019351,2]
[387708514,1758820233738,-480.0,0.00019351,2]
[387708515,1758820233748,-480.0,0.00019351,2]
[387708516,1758820233758,-480.0,0.00019351,2]
[387708517,1758820233768,-500.0,0.00019351,2]
[387708518,1758820233779,-500.0,0.00019351,2]
[387708519,1758820233789,-500.0,0.00019351,2]
[387708520,1758820233799,-500.0,0.00019351,2]
[387708521,1758820233809,-500.0,0.00019351,2]
[387708522,1758820233819,-500.0,0.00019351,2]
[387708523,1758820233829,-522.76,0.00019351,2]
[387708524,1758820233840,-480.0,0.00019351,2]
[387708525,1758820233850,-480.0,0.00019351,2]
[387708526,1758820233860,-480.0,0.00019351,2]
[387708527,1758820233870,-480.0,0.00019351,2]
[387708528,1758820233880,-480.0,0.00019351,2]
[387708529,1758820233890,-480.0,0.00019351,2]
[387708530,1758820233900,-1000.0,0.00019351,2]
[387708531,1758820233910,-1000.0,0.00019351,2]
[387708532,1758820233920,-1000.0,0.00019351,2]
[387708533,1758820233930,-1000.0,0.00019351,2]
[387708534,1758820233940,-1000.0,0.00019351,2]
[387708535,1758820233950,-1000.0,0.00019351,2]
[387708536,1758820233961,-500.0,0.00019351,2]
[387708537,1758820233971,-500.0,0.00019351,2]
[387708538,1758820233983,-500.0,0.00019351,2]
[387708539,1758820233993,-500.0,0.00019351,2]
[387708540,1758820234003,-500.0,0.00019351,2]
[387708541,1758820234013,-500.0,0.00019351,2]
[387708542,1758820234023,-500.0,0.00019351,2]
[387708543,1758820234033,-480.0,0.00019351,2]
[387708544,1758820234043,-480.0,0.00019351,2]
[387708545,1758820234054,-480.0,0.00019351,2]
[387708546,1758820234065,-622.56,0.00019351,2]
[387708547,1758820234079,-480.0,0.00019351,2]
[387708548,1758820234089,-480.0,0.00019351,2]
[387708549,1758820234099,-480.0,0.00019351,2]
[387708550,1758820234111,-2208.74106942,0.00019352,2]
[387708551,1758820234120,-1412.0881895,0.00019352,2]
[387708552,1758820234130,-218381.80401758,0.00019352,2]
[387708553,1758820234143,-14129.77540295,0.00019352,2]
[387708559,1758820238351,-26638.13341437,0.00019352,2]
[387708560,1758820238363,-4757.16836355,0.00019352,2]
[387708616,1758820241766,-822.42279838,0.00019352,2]
[387708618,1758820241777,-471.54538709,0.00019352,2]
[387708620,1758820241788,-900.67165588,0.00019352,2]
[387708621,1758820241799,-279.10748082,0.00019352,2]
[387708662,1758820246634,-858.72,0.00019346,2]
[387708664,1758820246644,-480.0,0.00019348,2]
[387708666,1758820246654,-480.0,0.00019348,2]
[387708668,1758820246663,-480.0,0.00019351,2]
[387708670,1758820246673,-9537.47999993,0.00019352,2]
[387708673,1758820246684,-59826.052014,0.00019352,2]
[387708674,1758820246695,-2084.58855555,0.00019352,2]
[387708711,1758820255525,810.55944437,0.0001908,2]
[387708712,1758820267182,178.177096,0.00018634,2]
[387708713,1758820286996,1298.0,0.00029929,60]
[387708810,1758820807528,-213.47710216,0.00019241,2]
[387708811,1758820807555,-227.41386393,0.00019242,2]
[387708812,1758820807584,-227.41386393,0.00019245,2]
[387708813,1758820807611,-227.41386393,0.00019247,2]
[387708814,1758820807639,-300.0,0.00019247,2]
[387708815,1758820808144,654.7127089,0.00018295,2]
[387708816,1758820820442,-1200.0,0.00019247,2]
[387708817,1758820820553,-3784.87778775,0.00019248,2]
[387708818,1758820821732,159.59642,0.00029852,60]
[387708819,1758820821761,488.40202,0.00029852,60]
[387708825,1758820957115,150.0,0.00022725,30]
[387708826,1758821053980,180.041382,0.00018337,2]
[387708827,1758821083046,-1200.0,0.00019247,2]
[387708828,1758821083075,-1781.28528324,0.00019248,2]
[387708829,1758821083193,-3857.39805152,0.00019248,2]
[387708831,1758821096481,676.0,0.00027,120]
[387708834,1758821122639,-157.26618734,0.000192,2]
[387708844,1758821226134,-157.26618733,0.00019234,2]
[387708845,1758821226156,-1233.51529335,0.00019248,2]
[387708854,1758821313717,569100.70266198,0.00029857,120]
[387708860,1758821356136,-825.9904387,0.00019234,2]
[387708861,1758821356157,-6719.24998899,0.00019246,2]
[387708862,1758821356178,-1425.02822656,0.00019247,2]
[387708863,1758821356197,-500.0,0.000193,2]
[387708864,1758821356218,-1200.0,0.00019332,2]
[387708865,1758821356238,-300.0,0.00019332,2]
[387708866,1758821356258,-500.0,0.00019333,2]
[387708867,1758821356280,-500.0,0.00019333,2]
[387708868,1758821356300,-500.0,0.00019333,2]
[387708869,1758821356320,-590.05999474,0.00019333,2]
[387708870,1758821356339,-404.07079103,0.00019333,2]
[387708871,1758821356359,-500.0,0.00019333,2]
[387708872,1758821356383,-500.0,0.00019333,2]
[387708873,1758821356403,-500.0,0.00019333,2]
[387708874,1758821356423,-500.0,0.00019333,2]
[387708875,1758821356443,-500.0,0.00019333,2]
[387708876,1758821356464,-500.0,0.00019333,2]
[387708877,1758821356486,-500.0,0.00019333,2]
[387708878,1758821356505,-500.0,0.00019333,2]
[387708879,1758821356525,-500.0,0.00019333,2]
[387708880,1758821356546,-500.0,0.00019333,2]
[387708881,1758821356568,-500.0,0.00019333,2]
[387708882,1758821356589,-446.06975235,0.00019333,2]
[387708883,1758821356610,-500.0,0.00019333,2]
[387708884,1758821356630,-110.88860457,0.00019333,2]
[387708885,1758821359413,-389.11139543,0.00019333,2]
[387708886,1758821359436,-500.0,0.00019333,2]
[387708887,1758821359457,-482.3346841,0.00019333,2]
[387708888,1758821359480,-500.0,0.00019333,2]
[387708889,1758821359502,-500.0,0.00019333,2]
[387708890,1758821359522,-283.96190769,0.00019333,2]
[387708891,1758821359543,-500.0,0.00019333,2]
[387708892,1758821359566,-500.0,0.00019333,2]
[387708893,1758821359587,-500.0,0.00019333,2]
[387708894,1758821359609,-500.0,0.00019333,2]
[387708895,1758821359630,-500.0,0.00019333,2]
[387708896,1758821359652,-500.0,0.00019333,2]
[387708897,1758821359673,-500.0,0.00019333,2]
[387708898,1758821359694,-500.0,0.00019333,2]
[387708899,1758821359716,-500.0,0.00019333,2]
[387708900,1758821359737,-500.0,0.00019333,2]
[387708901,1758821359758,-500.0,0.00019333,2]
[387708902,1758821359780,-500.0,0.00019333,2]
[387708903,1758821359801,-500.0,0.00019333,2]
[387708904,1758821359821,-500.0,0.00019333,2]
[387708905,1758821359842,-500.0,0.00019333,2]
[387708906,1758821359863,-500.0,0.00019333,2]
[387708907,1758821359885,-500.0,0.00019333,2]
[387708908,1758821359907,-500.0,0.00019333,2]
[387708909,1758821359929,-200.60989626,0.00019333,2]
[387708910,1758821359951,-500.0,0.00019333,2]
[387708911,1758821359972,-500.0,0.00019333,2]
[387708912,1758821359993,-500.0,0.00019333,2]
[387708913,1758821360014,-300.0,0.00019333,2]
[387708914,1758821360034,-300.0,0.00019333,2]
[387708915,1758821360053,-300.0,0.00019333,2]
[387708916,1758821360073,-50000.0,0.00019334,2]